[Event "Late-Titled-Tuesday-Blitz-July-09-2024"]
[Site "Chess.com"]
[Date "2024.07.09"]
[Round "1"]
[White "ExchangeAB"]
[Black "Arysya"]
[Result "0-1"]
[WhiteElo "2469"]
[BlackElo "2888"]
[TimeControl "180+1"]
[EndTime "14:05:32 PDT"]
[Termination "Arysya won by resignation"]

1. d4 {[%clk 0:02:58.2]} 1... Nf6 {[%clk 0:02:59.6]} 2. Nf3 {[%clk 0:02:56.6]}
2... d6 {[%clk 0:02:59.8]} 3. g3 {[%clk 0:02:55.8]} 3... g6 {[%clk 0:02:59.8]}
4. Bg2 {[%clk 0:02:56.2]} 4... Bg7 {[%clk 0:03:00.7]} 5. O-O {[%clk 0:02:56.6]}
5... O-O {[%clk 0:03:01.4]} 6. b3 {[%clk 0:02:56.3]} 6... a5 {[%clk 0:02:58.7]}
7. Bb2 {[%clk 0:02:53.1]} 7... c6 {[%clk 0:02:58.5]} 8. c4 {[%clk 0:02:53.3]}
8... a4 {[%clk 0:02:58.8]} 9. Nc3 {[%clk 0:02:50.8]} 9... a3 {[%clk 0:02:58.5]}
10. Bc1 {[%clk 0:02:50.9]} 10... Bf5 {[%clk 0:02:58.4]} 11. Nh4 {[%clk
0:02:46.9]} 11... Bd7 {[%clk 0:02:57.5]} 12. e4 {[%clk 0:02:46]} 12... e5 {[%clk
0:02:57.7]} 13. dxe5 {[%clk 0:02:36.7]} 13... dxe5 {[%clk 0:02:58.6]} 14. Be3
{[%clk 0:02:33.3]} 14... Na6 {[%clk 0:02:54.9]} 15. Na4 {[%clk 0:02:29]} 15...
Qe7 {[%clk 0:02:49.7]} 16. Qe2 {[%clk 0:02:17]} 16... Bg4 {[%clk 0:02:44.4]} 17.
f3 {[%clk 0:02:15.5]} 17... Be6 {[%clk 0:02:43.3]} 18. Rfd1 {[%clk 0:02:14.9]}
18... Nd7 {[%clk 0:02:42.9]} 19. Nb6 {[%clk 0:02:11.2]} 19... Nxb6 {[%clk
0:02:39]} 20. Bxb6 {[%clk 0:02:12.1]} 20... Bf6 {[%clk 0:02:39.6]} 21. Bf2
{[%clk 0:02:09.9]} 21... Nb4 {[%clk 0:02:36.3]} 22. Rd2 {[%clk 0:02:08]} 22...
c5 {[%clk 0:02:36.4]} 23. Rad1 {[%clk 0:01:48.6]} 23... Nc6 {[%clk 0:02:36.6]}
24. Bf1 {[%clk 0:01:45.8]} 24... Nd4 {[%clk 0:02:35.5]} 25. Bxd4 {[%clk
0:01:45]} 25... exd4 {[%clk 0:02:29.3]} 26. Ng2 {[%clk 0:01:44.9]} 26... Rae8
{[%clk 0:02:28.7]} 27. Qd3 {[%clk 0:01:44.3]} 27... Bd7 {[%clk 0:02:26.9]} 28.
Re2 {[%clk 0:01:41.7]} 28... Bc6 {[%clk 0:02:26.8]} 29. Nf4 {[%clk 0:01:41.4]}
29... Bg5 {[%clk 0:02:24.8]} 30. Nd5 {[%clk 0:01:40.6]} 30... Bxd5 {[%clk
0:02:24.2]} 31. cxd5 {[%clk 0:01:39]} 31... f5 {[%clk 0:02:20.6]} 32. Bg2 {[%clk
0:01:15.4]} 32... fxe4 {[%clk 0:02:15.9]} 33. Rxe4 {[%clk 0:01:12.7]} 33... Be3+
{[%clk 0:02:16.2]} 34. Kh1 {[%clk 0:01:09.8]} 34... Qd6 {[%clk 0:02:16.1]} 35.
f4 {[%clk 0:01:06.2]} 35... Kg7 {[%clk 0:02:14.4]} 36. Re1 {[%clk 0:01:01.8]}
36... Rxe4 {[%clk 0:02:10.6]} 37. Qxe4 {[%clk 0:00:52.4]} 37... Rf7 {[%clk
0:02:10.7]} 38. Qe6 {[%clk 0:00:49.2]} 38... Qxe6 {[%clk 0:02:10]} 39. dxe6
{[%clk 0:00:50.1]} 39... Rc7 {[%clk 0:02:08.7]} 40. Bd5 {[%clk 0:00:42.3]} 40...
b5 {[%clk 0:02:08.2]} 41. Kg2 {[%clk 0:00:38.7]} 41... Kf6 {[%clk 0:02:07.5]}
42. Kf3 {[%clk 0:00:37.9]} 42... c4 {[%clk 0:02:07]} 43. Ke4 {[%clk 0:00:35.5]}
43... c3 {[%clk 0:02:04.8]} 44. e7 {[%clk 0:00:24.4]} 44... Kxe7 {[%clk
0:02:00.7]} 0-1

[Event "Late-Titled-Tuesday-Blitz-July-09-2024"]
[Site "Chess.com"]
[Date "2024.07.09"]
[Round "1"]
[White "Dexter_Dyke"]
[Black "artin10862"]
[Result "0-1"]
[WhiteElo "2493"]
[BlackElo "2948"]
[TimeControl "180+1"]
[EndTime "14:05:48 PDT"]
[Termination "artin10862 won by checkmate"]

1. e4 {[%clk 0:03:00.9]} 1... e5 {[%clk 0:02:57.4]} 2. Nf3 {[%clk 0:03:00.4]}
2... Nc6 {[%clk 0:02:58.1]} 3. d4 {[%clk 0:02:59.6]} 3... exd4 {[%clk
0:02:54.1]} 4. Nxd4 {[%clk 0:02:59.9]} 4... Bc5 {[%clk 0:02:53.1]} 5. Nb3 {[%clk
0:02:58.4]} 5... Bb6 {[%clk 0:02:53]} 6. Nc3 {[%clk 0:02:58.6]} 6... Nf6 {[%clk
0:02:53]} 7. Qe2 {[%clk 0:02:53.1]} 7... a5 {[%clk 0:02:52.4]} 8. a4 {[%clk
0:02:48.1]} 8... O-O {[%clk 0:02:49.9]} 9. Be3 {[%clk 0:02:48.4]} 9... d5 {[%clk
0:02:05.4]} 10. Bxb6 {[%clk 0:02:44.8]} 10... cxb6 {[%clk 0:02:05.4]} 11. O-O-O
{[%clk 0:02:44.8]} 11... Re8 {[%clk 0:02:04.1]} 12. Nxd5 {[%clk 0:02:40.1]}
12... Nxe4 {[%clk 0:01:54.7]} 13. Ne3 {[%clk 0:02:14.2]} 13... Qf6 {[%clk
0:01:48.8]} 14. Kb1 {[%clk 0:02:10.5]} 14... Qxf2 {[%clk 0:01:26.7]} 15. Nd5
{[%clk 0:01:52.8]} 15... Nc3+ {[%clk 0:01:09]} 16. Nxc3 {[%clk 0:01:46.9]} 16...
Rxe2 {[%clk 0:01:09.6]} 17. Bxe2 {[%clk 0:01:40.8]} 17... Be6 {[%clk 0:01:09.8]}
18. Bf3 {[%clk 0:01:36.9]} 18... Rc8 {[%clk 0:01:08.5]} 19. Rhf1 {[%clk
0:01:27.7]} 19... Qh4 {[%clk 0:01:08.2]} 20. Bxc6 {[%clk 0:01:20.2]} 20... bxc6
{[%clk 0:01:07.3]} 21. Nd4 {[%clk 0:01:20.5]} 21... Qxh2 {[%clk 0:01:03.8]} 22.
Nxe6 {[%clk 0:01:20.3]} 22... fxe6 {[%clk 0:01:04.5]} 23. Rd7 {[%clk 0:01:20.5]}
23... Qxg2 {[%clk 0:01:04.4]} 24. Rff7 {[%clk 0:01:20.5]} 24... Rf8 {[%clk
0:01:01]} 25. Rfe7 {[%clk 0:01:18.5]} 25... h5 {[%clk 0:01:00.9]} 26. Ne4 {[%clk
0:01:17.5]} 26... Qxe4 {[%clk 0:01:00.3]} 27. Rxg7+ {[%clk 0:01:17.2]} 27... Kh8
{[%clk 0:01:00.9]} 28. Rg5 {[%clk 0:01:17.3]} 28... Rf1+ {[%clk 0:00:58.9]} 29.
Ka2 {[%clk 0:00:35.7]} 29... Qxa4# {[%clk 0:00:58]} 0-1

[Event "Late-Titled-Tuesday-Blitz-July-09-2024"]
[Site "Chess.com"]
[Date "2024.07.09"]
[Round "1"]
[White "SpeedofLight0"]
[Black "malakismayil"]
[Result "1-0"]
[WhiteElo "3123"]
[BlackElo "2517"]
[TimeControl "180+1"]
[EndTime "14:05:49 PDT"]
[Termination "SpeedofLight0 won on time"]

1. d4 {[%clk 0:03:00.9]} 1... d5 {[%clk 0:02:59.6]} 2. Nc3 {[%clk 0:03:00.8]}
2... Nf6 {[%clk 0:02:58.2]} 3. Bf4 {[%clk 0:03:00.3]} 3... Bf5 {[%clk 0:02:57]}
4. e3 {[%clk 0:02:59.1]} 4... e6 {[%clk 0:02:56.3]} 5. f3 {[%clk 0:02:58.6]}
5... Bb4 {[%clk 0:02:55.3]} 6. g4 {[%clk 0:02:57.9]} 6... Bg6 {[%clk 0:02:54.9]}
7. h4 {[%clk 0:02:58.4]} 7... h6 {[%clk 0:02:53.1]} 8. Bd3 {[%clk 0:02:55.8]}
8... Bxd3 {[%clk 0:02:49.9]} 9. Qxd3 {[%clk 0:02:56.7]} 9... Nbd7 {[%clk
0:02:43.4]} 10. Ne2 {[%clk 0:02:54.4]} 10... a6 {[%clk 0:02:40.9]} 11. O-O-O
{[%clk 0:02:52.1]} 11... Nb6 {[%clk 0:02:33.2]} 12. g5 {[%clk 0:02:50.2]} 12...
Nh5 {[%clk 0:02:30.4]} 13. gxh6 {[%clk 0:02:45.8]} 13... Nxf4 {[%clk 0:02:27.9]}
14. Nxf4 {[%clk 0:02:46.5]} 14... Rxh6 {[%clk 0:02:27.9]} 15. h5 {[%clk
0:02:46.6]} 15... Qf6 {[%clk 0:02:22.7]} 16. Nce2 {[%clk 0:02:46.3]} 16... Bd6
{[%clk 0:02:19.5]} 17. Kb1 {[%clk 0:02:37.8]} 17... O-O-O {[%clk 0:02:17.5]} 18.
Rdg1 {[%clk 0:02:34.6]} 18... Rdh8 {[%clk 0:02:12.1]} 19. Rh3 {[%clk 0:02:22.5]}
19... g6 {[%clk 0:01:57.9]} 20. hxg6 {[%clk 0:02:19.5]} 20... Rxh3 {[%clk
0:01:57]} 21. Nxh3 {[%clk 0:02:20.4]} 21... fxg6 {[%clk 0:01:43.2]} 22. Ng5
{[%clk 0:02:17.9]} 22... Bh2 {[%clk 0:01:11.9]} 23. Rg2 {[%clk 0:02:15.2]} 23...
Bd6 {[%clk 0:01:02.2]} 24. a3 {[%clk 0:02:09.3]} 24... Rh1+ {[%clk 0:00:56.5]}
25. Ka2 {[%clk 0:02:09.1]} 25... Nc4 {[%clk 0:00:57.1]} 26. e4 {[%clk
0:02:06.7]} 26... Be7 {[%clk 0:00:52.5]} 27. e5 {[%clk 0:02:03.1]} 27... Qf5
{[%clk 0:00:46.9]} 28. Qxf5 {[%clk 0:02:02.8]} 28... exf5 {[%clk 0:00:47.8]} 29.
Ne6 {[%clk 0:02:01.2]} 29... g5 {[%clk 0:00:41.1]} 30. Nxg5 {[%clk 0:01:56.3]}
30... Ne3 {[%clk 0:00:41.2]} 31. Rg3 {[%clk 0:01:56.7]} 31... Nxc2 {[%clk
0:00:34.3]} 32. Ne6 {[%clk 0:01:55]} 32... Rh2 {[%clk 0:00:31.7]} 33. N6f4
{[%clk 0:01:52.8]} 33... a5 {[%clk 0:00:19.1]} 34. Rg7 {[%clk 0:01:45.6]} 34...
Bd8 {[%clk 0:00:11.9]} 35. e6 {[%clk 0:01:43.8]} 35... a4 {[%clk 0:00:08.5]} 36.
Rg8 {[%clk 0:01:43.8]} 36... Rh1 {[%clk 0:00:07.8]} 37. Ng1 {[%clk 0:01:44.4]}
37... c5 {[%clk 0:00:01.9]} 38. e7 {[%clk 0:01:43.6]} 1-0

[Event "Late-Titled-Tuesday-Blitz-July-09-2024"]
[Site "Chess.com"]
[Date "2024.07.09"]
[Round "1"]
[White "Antek_Radzimski"]
[Black "osielchesslover2011"]
[Result "1-0"]
[WhiteElo "2577"]
[BlackElo "2182"]
[TimeControl "180+1"]
[EndTime "14:05:51 PDT"]
[Termination "Antek_Radzimski won on time"]

1. e4 {[%clk 0:03:00.2]} 1... c5 {[%clk 0:02:59.7]} 2. Nf3 {[%clk 0:03:00.2]}
2... d6 {[%clk 0:03:00.2]} 3. d4 {[%clk 0:03:00.8]} 3... cxd4 {[%clk 0:03:00.7]}
4. Nxd4 {[%clk 0:03:01.7]} 4... Nf6 {[%clk 0:03:01.1]} 5. Nc3 {[%clk 0:03:02.6]}
5... a6 {[%clk 0:03:01.6]} 6. h4 {[%clk 0:03:02.7]} 6... b5 {[%clk 0:02:59.8]}
7. a4 {[%clk 0:02:57]} 7... b4 {[%clk 0:02:57.6]} 8. Nd5 {[%clk 0:02:57.6]} 8...
e6 {[%clk 0:02:36.6]} 9. Nxf6+ {[%clk 0:02:54.7]} 9... gxf6 {[%clk 0:02:35.6]}
10. Bd3 {[%clk 0:02:51.2]} 10... Bb7 {[%clk 0:02:33.3]} 11. Be3 {[%clk
0:02:46.9]} 11... Nc6 {[%clk 0:02:30.7]} 12. Nb3 {[%clk 0:02:43.4]} 12... Be7
{[%clk 0:02:17.1]} 13. h5 {[%clk 0:02:40.1]} 13... Ne5 {[%clk 0:02:06.7]} 14.
Qd2 {[%clk 0:02:36.8]} 14... Qc7 {[%clk 0:01:51.6]} 15. O-O-O {[%clk 0:02:11.9]}
15... Nc4 {[%clk 0:01:28.9]} 16. Qe2 {[%clk 0:02:09.5]} 16... Nxe3 {[%clk
0:01:23.6]} 17. Qxe3 {[%clk 0:02:09.6]} 17... a5 {[%clk 0:01:00.9]} 18. Bb5+
{[%clk 0:02:04.8]} 18... Bc6 {[%clk 0:00:59.6]} 19. Qd3 {[%clk 0:02:05.7]} 19...
Rb8 {[%clk 0:00:30.9]} 20. Nd4 {[%clk 0:02:03.7]} 20... Bd7 {[%clk 0:00:24.9]}
21. h6 {[%clk 0:01:58.8]} 21... Qc5 {[%clk 0:00:16.8]} 22. g4 {[%clk 0:01:48.7]}
22... Qg5+ {[%clk 0:00:14.6]} 23. Kb1 {[%clk 0:01:47.2]} 23... Qxg4 {[%clk
0:00:11.1]} 24. f3 {[%clk 0:01:36.9]} 24... Qg5 {[%clk 0:00:09.3]} 25. Bxd7+
{[%clk 0:01:26.1]} 25... Kxd7 {[%clk 0:00:08.2]} 26. Nb3 {[%clk 0:01:27]} 26...
Ke8 {[%clk 0:00:03.5]} 27. Qa6 {[%clk 0:01:24.3]} 1-0

[Event "Late-Titled-Tuesday-Blitz-July-09-2024"]
[Site "Chess.com"]
[Date "2024.07.09"]
[Round "1"]
[White "FabianoCaruana"]
[Black "bob1263"]
[Result "1-0"]
[WhiteElo "3182"]
[BlackElo "2518"]
[TimeControl "180+1"]
[EndTime "14:05:55 PDT"]
[Termination "FabianoCaruana won by checkmate"]

1. e4 {[%clk 0:02:58.9]} 1... c5 {[%clk 0:02:58.1]} 2. Nf3 {[%clk 0:02:58.1]}
2... e6 {[%clk 0:02:52.2]} 3. d4 {[%clk 0:02:57]} 3... cxd4 {[%clk 0:02:52.1]}
4. Nxd4 {[%clk 0:02:57.9]} 4... Nf6 {[%clk 0:02:51.6]} 5. Nc3 {[%clk 0:02:58.2]}
5... d6 {[%clk 0:02:51.9]} 6. Be3 {[%clk 0:02:56.8]} 6... Nc6 {[%clk 0:02:48.4]}
7. Qd2 {[%clk 0:02:50.4]} 7... Be7 {[%clk 0:02:41.9]} 8. f3 {[%clk 0:02:49.3]}
8... a6 {[%clk 0:02:33.5]} 9. O-O-O {[%clk 0:02:29.9]} 9... Qc7 {[%clk
0:02:18.2]} 10. g4 {[%clk 0:02:27.5]} 10... b5 {[%clk 0:02:08.6]} 11. Nxc6
{[%clk 0:02:26.4]} 11... Qxc6 {[%clk 0:02:08]} 12. g5 {[%clk 0:02:26.6]} 12...
Nd7 {[%clk 0:01:44.1]} 13. Ne2 {[%clk 0:02:20.7]} 13... Bb7 {[%clk 0:01:24.5]}
14. Nd4 {[%clk 0:02:20.6]} 14... Qc7 {[%clk 0:01:23.9]} 15. h4 {[%clk
0:02:09.8]} 15... Rc8 {[%clk 0:01:18.4]} 16. Kb1 {[%clk 0:02:01.9]} 16... Ne5
{[%clk 0:01:17.1]} 17. Be2 {[%clk 0:01:45.1]} 17... Nc4 {[%clk 0:01:12.7]} 18.
Bxc4 {[%clk 0:01:44.6]} 18... Qxc4 {[%clk 0:01:12.7]} 19. h5 {[%clk 0:01:42]}
19... b4 {[%clk 0:00:51]} 20. Qg2 {[%clk 0:01:25.5]} 20... a5 {[%clk 0:00:48.4]}
21. b3 {[%clk 0:01:20.8]} 21... Qc7 {[%clk 0:00:34.8]} 22. g6 {[%clk 0:01:20.6]}
22... O-O {[%clk 0:00:19.8]} 23. h6 {[%clk 0:01:16]} 23... Bf6 {[%clk
0:00:16.4]} 24. hxg7 {[%clk 0:01:15]} 24... Bxg7 {[%clk 0:00:16]} 25. gxh7+
{[%clk 0:01:06.5]} 25... Kh8 {[%clk 0:00:15]} 26. Rdg1 {[%clk 0:01:06.8]} 26...
Be5 {[%clk 0:00:10.8]} 27. Qg8+ {[%clk 0:01:06.1]} 27... Rxg8 {[%clk 0:00:09.4]}
28. hxg8=Q# {[%clk 0:01:07]} 1-0

[Event "Late-Titled-Tuesday-Blitz-July-09-2024"]
[Site "Chess.com"]
[Date "2024.07.09"]
[Round "1"]
[White "Keaton87"]
[Black "EDaMatta"]
[Result "1-0"]
[WhiteElo "2648"]
[BlackElo "2325"]
[TimeControl "180+1"]
[EndTime "14:05:56 PDT"]
[Termination "Keaton87 won on time"]

1. d4 {[%clk 0:02:57.1]} 1... d5 {[%clk 0:02:59.7]} 2. Bf4 {[%clk 0:02:55.8]}
2... c5 {[%clk 0:02:58.6]} 3. e3 {[%clk 0:02:56]} 3... Nc6 {[%clk 0:02:58.1]} 4.
c3 {[%clk 0:02:56.2]} 4... Bf5 {[%clk 0:02:57.2]} 5. Nd2 {[%clk 0:02:53.1]} 5...
e6 {[%clk 0:02:57.1]} 6. Ngf3 {[%clk 0:02:52.2]} 6... Nf6 {[%clk 0:02:56.8]} 7.
Bb5 {[%clk 0:02:50.5]} 7... Bd6 {[%clk 0:02:52.5]} 8. Ne5 {[%clk 0:02:47.2]}
8... Bxe5 {[%clk 0:02:34.3]} 9. Bxe5 {[%clk 0:02:47.3]} 9... cxd4 {[%clk
0:02:33.8]} 10. exd4 {[%clk 0:02:46.8]} 10... O-O {[%clk 0:02:33]} 11. Bg3
{[%clk 0:02:38.5]} 11... a6 {[%clk 0:02:30.5]} 12. Be2 {[%clk 0:02:36]} 12...
Re8 {[%clk 0:02:26.1]} 13. O-O {[%clk 0:02:35.9]} 13... e5 {[%clk 0:02:21.6]}
14. dxe5 {[%clk 0:02:36]} 14... Nxe5 {[%clk 0:02:20.8]} 15. Nf3 {[%clk
0:02:36.2]} 15... Nc4 {[%clk 0:02:13.2]} 16. Nd4 {[%clk 0:02:30.9]} 16... Bg6
{[%clk 0:01:56.8]} 17. b3 {[%clk 0:02:29.3]} 17... Ne5 {[%clk 0:01:49.9]} 18. f4
{[%clk 0:02:23.8]} 18... Nc6 {[%clk 0:01:43.6]} 19. f5 {[%clk 0:02:21.4]} 19...
Nxd4 {[%clk 0:01:37.1]} 20. cxd4 {[%clk 0:02:21.7]} 20... Rxe2 {[%clk
0:01:23.6]} 21. Qxe2 {[%clk 0:02:17.8]} 21... Bh5 {[%clk 0:01:23.3]} 22. Qe5
{[%clk 0:02:13.5]} 22... Ne4 {[%clk 0:01:10.9]} 23. f6 {[%clk 0:02:12.6]} 23...
g6 {[%clk 0:01:04.2]} 24. Rae1 {[%clk 0:02:05.7]} 24... Rc8 {[%clk 0:01:01.1]}
25. Rc1 {[%clk 0:01:51.5]} 25... Nc3 {[%clk 0:00:57.4]} 26. Kh1 {[%clk
0:01:48.8]} 26... Nxa2 {[%clk 0:00:45.6]} 27. Rxc8 {[%clk 0:01:47.4]} 27... Qxc8
{[%clk 0:00:46.5]} 28. Re1 {[%clk 0:01:43.3]} 28... h6 {[%clk 0:00:43.7]} 29.
Qxd5 {[%clk 0:01:29.3]} 29... Nb4 {[%clk 0:00:33.3]} 30. Qc5 {[%clk 0:01:24.7]}
30... Qxc5 {[%clk 0:00:28.9]} 31. dxc5 {[%clk 0:01:25.6]} 31... Nd3 {[%clk
0:00:16.6]} 32. Re8+ {[%clk 0:01:24.3]} 32... Kh7 {[%clk 0:00:16.4]} 33. Bd6
{[%clk 0:01:24.2]} 1-0

[Event "Late-Titled-Tuesday-Blitz-July-09-2024"]
[Site "Chess.com"]
[Date "2024.07.09"]
[Round "1"]
[White "Mikhail_Golubev"]
[Black "IngOscarArdila"]
[Result "1-0"]
[WhiteElo "2632"]
[BlackElo "2302"]
[TimeControl "180+1"]
[EndTime "14:05:58 PDT"]
[Termination "Mikhail_Golubev won by resignation"]

1. e4 {[%clk 0:02:59.2]} 1... e5 {[%clk 0:02:55.6]} 2. Nf3 {[%clk 0:02:58.6]}
2... Nf6 {[%clk 0:02:55.4]} 3. Nc3 {[%clk 0:02:57.4]} 3... Nc6 {[%clk
0:02:54.8]} 4. g3 {[%clk 0:02:56.6]} 4... Bb4 {[%clk 0:02:53.8]} 5. Bg2 {[%clk
0:02:55.5]} 5... d6 {[%clk 0:02:53.6]} 6. O-O {[%clk 0:02:48.7]} 6... O-O {[%clk
0:02:52.9]} 7. d3 {[%clk 0:02:44.2]} 7... h6 {[%clk 0:02:52.1]} 8. Bd2 {[%clk
0:02:39.3]} 8... Bg4 {[%clk 0:02:50.1]} 9. h3 {[%clk 0:02:37.2]} 9... Be6 {[%clk
0:02:46.8]} 10. Re1 {[%clk 0:02:29.4]} 10... Qd7 {[%clk 0:02:43.9]} 11. Kh2
{[%clk 0:02:27.4]} 11... Rad8 {[%clk 0:02:39.9]} 12. Nh4 {[%clk 0:02:12.6]}
12... Nd4 {[%clk 0:02:34.7]} 13. f4 {[%clk 0:02:05.3]} 13... exf4 {[%clk
0:02:21.8]} 14. gxf4 {[%clk 0:02:02.1]} 14... Qc8 {[%clk 0:02:06.7]} 15. Be3
{[%clk 0:01:49.1]} 15... c5 {[%clk 0:02:03.3]} 16. Rf1 {[%clk 0:01:17.3]} 16...
a6 {[%clk 0:01:51.1]} 17. Qd2 {[%clk 0:01:15.6]} 17... Qc7 {[%clk 0:01:43.4]}
18. f5 {[%clk 0:00:56.8]} 18... Bd7 {[%clk 0:01:30.7]} 19. Bxh6 {[%clk
0:00:52.6]} 19... gxh6 {[%clk 0:01:30.5]} 20. Qxh6 {[%clk 0:00:51.2]} 20... d5+
{[%clk 0:01:24.4]} 21. Kh1 {[%clk 0:00:48.4]} 21... Qd6 {[%clk 0:01:10.8]} 22.
Rg1 {[%clk 0:00:37.9]} 22... Nxe4 {[%clk 0:00:28.2]} 23. Bxe4+ {[%clk
0:00:35.5]} 1-0

[Event "Late-Titled-Tuesday-Blitz-July-09-2024"]
[Site "Chess.com"]
[Date "2024.07.09"]
[Round "1"]
[White "Zhigalko_Sergei"]
[Black "noblerone"]
[Result "1-0"]
[WhiteElo "2930"]
[BlackElo "2489"]
[TimeControl "180+1"]
[EndTime "14:05:59 PDT"]
[Termination "Zhigalko_Sergei won on time"]

1. e4 {[%clk 0:03:00.9]} 1... c5 {[%clk 0:02:54.9]} 2. Nf3 {[%clk 0:03:00.5]}
2... e6 {[%clk 0:02:51.1]} 3. c3 {[%clk 0:03:00.3]} 3... Nf6 {[%clk 0:02:49.5]}
4. e5 {[%clk 0:03:00.6]} 4... Nd5 {[%clk 0:02:49.7]} 5. Bc4 {[%clk 0:03:01.2]}
5... d6 {[%clk 0:02:46.7]} 6. d4 {[%clk 0:03:00.8]} 6... cxd4 {[%clk 0:02:45]}
7. cxd4 {[%clk 0:03:01.7]} 7... Be7 {[%clk 0:02:43.6]} 8. O-O {[%clk 0:03:01.7]}
8... O-O {[%clk 0:02:43.3]} 9. Bd2 {[%clk 0:03:01.7]} 9... b6 {[%clk 0:02:32.1]}
10. Qe2 {[%clk 0:03:01.4]} 10... Bb7 {[%clk 0:02:26.8]} 11. Nc3 {[%clk
0:03:00.9]} 11... dxe5 {[%clk 0:02:10.8]} 12. dxe5 {[%clk 0:02:59.5]} 12... Nxc3
{[%clk 0:02:07.4]} 13. Bxc3 {[%clk 0:02:59.6]} 13... Qc7 {[%clk 0:01:31.7]} 14.
Bd3 {[%clk 0:02:57.5]} 14... Nd7 {[%clk 0:01:26.1]} 15. Rfe1 {[%clk 0:02:55.8]}
15... Nc5 {[%clk 0:01:19.2]} 16. Bc2 {[%clk 0:02:50.4]} 16... a5 {[%clk
0:01:19.4]} 17. Nd4 {[%clk 0:02:49.6]} 17... Rad8 {[%clk 0:01:15.2]} 18. Qg4
{[%clk 0:02:45.3]} 18... Rfe8 {[%clk 0:00:57]} 19. Nb5 {[%clk 0:02:23.9]} 19...
Qc6 {[%clk 0:00:49.9]} 20. Nd6 {[%clk 0:02:24]} 20... Rf8 {[%clk 0:00:31.7]} 21.
Qh3 {[%clk 0:01:50.5]} 21... g6 {[%clk 0:00:29.6]} 22. Re3 {[%clk 0:01:41.7]}
22... f5 {[%clk 0:00:20.6]} 23. Rg3 {[%clk 0:01:17]} 23... Bxd6 {[%clk
0:00:12.5]} 24. exd6 {[%clk 0:01:17]} 24... Qd7 {[%clk 0:00:06.6]} 25. Qh6
{[%clk 0:01:04]} 1-0

[Event "Late-Titled-Tuesday-Blitz-July-09-2024"]
[Site "Chess.com"]
[Date "2024.07.09"]
[Round "1"]
[White "zsoltkorpics"]
[Black "OparinGrigoriy"]
[Result "0-1"]
[WhiteElo "2506"]
[BlackElo "3004"]
[TimeControl "180+1"]
[EndTime "14:06:11 PDT"]
[Termination "OparinGrigoriy won by resignation"]

1. e4 {[%clk 0:03:00.9]} 1... c5 {[%clk 0:02:59.1]} 2. Nf3 {[%clk 0:03:01.2]}
2... Nc6 {[%clk 0:02:59.4]} 3. d4 {[%clk 0:03:01.3]} 3... cxd4 {[%clk
0:02:59.5]} 4. Nxd4 {[%clk 0:03:01.8]} 4... e5 {[%clk 0:03:00.4]} 5. Nb5 {[%clk
0:03:01.2]} 5... d6 {[%clk 0:03:00.2]} 6. N1c3 {[%clk 0:03:01.6]} 6... a6 {[%clk
0:03:00.3]} 7. Na3 {[%clk 0:03:02.3]} 7... Be6 {[%clk 0:03:00.6]} 8. Nc4 {[%clk
0:03:01.6]} 8... Rb8 {[%clk 0:03:00.4]} 9. Ne3 {[%clk 0:03:00.2]} 9... Nf6
{[%clk 0:02:57.2]} 10. Bd3 {[%clk 0:02:56.7]} 10... g6 {[%clk 0:02:52.9]} 11.
O-O {[%clk 0:02:55.9]} 11... Bh6 {[%clk 0:02:52.3]} 12. Ned5 {[%clk 0:02:53.5]}
12... Bxc1 {[%clk 0:02:51.5]} 13. Qxc1 {[%clk 0:02:54.4]} 13... Bxd5 {[%clk
0:02:50.5]} 14. Nxd5 {[%clk 0:02:34.4]} 14... Nxd5 {[%clk 0:02:48.8]} 15. exd5
{[%clk 0:02:35.3]} 15... Ne7 {[%clk 0:02:49.1]} 16. c4 {[%clk 0:02:34.7]} 16...
f5 {[%clk 0:02:47.7]} 17. Qh6 {[%clk 0:02:33.4]} 17... Kf7 {[%clk 0:02:47.3]}
18. Rae1 {[%clk 0:02:30.1]} 18... Ng8 {[%clk 0:02:47.2]} 19. Qd2 {[%clk
0:02:27.1]} 19... Nf6 {[%clk 0:02:47.3]} 20. Rc1 {[%clk 0:02:05.5]} 20... b6
{[%clk 0:02:46.4]} 21. c5 {[%clk 0:01:57.6]} 21... bxc5 {[%clk 0:02:46]} 22.
Bxa6 {[%clk 0:01:57.5]} 22... Qb6 {[%clk 0:02:34.6]} 23. Bc4 {[%clk 0:01:29.4]}
23... Qxb2 {[%clk 0:02:29.9]} 24. Rc2 {[%clk 0:01:24.2]} 24... Qb4 {[%clk
0:02:25.4]} 25. Qd3 {[%clk 0:01:22]} 25... Rb7 {[%clk 0:02:20.3]} 26. Bb3 {[%clk
0:01:21.7]} 26... Rhb8 {[%clk 0:02:20.4]} 27. Rc4 {[%clk 0:01:21.5]} 27... Qa5
{[%clk 0:02:20.8]} 28. Ra4 {[%clk 0:01:19.8]} 28... Qc7 {[%clk 0:02:19.7]} 29.
h3 {[%clk 0:01:15.5]} 29... Rb4 {[%clk 0:02:18.6]} 30. Ra6 {[%clk 0:01:07]}
30... c4 {[%clk 0:02:13]} 31. Rc6 {[%clk 0:00:57.5]} 31... cxd3 {[%clk
0:02:01.3]} 32. Rxc7+ {[%clk 0:00:57.4]} 32... Kf8 {[%clk 0:02:01.9]} 33. f3
{[%clk 0:00:43.6]} 33... Rd4 {[%clk 0:01:58.1]} 34. Rc6 {[%clk 0:00:41]} 34...
d2 {[%clk 0:01:57.5]} 35. Rd1 {[%clk 0:00:39.1]} 35... Ke7 {[%clk 0:01:46.9]}
36. Rc7+ {[%clk 0:00:38.6]} 36... Kd8 {[%clk 0:01:46.5]} 37. Rf7 {[%clk
0:00:38.2]} 37... Nxd5 {[%clk 0:01:46.8]} 38. Bxd5 {[%clk 0:00:38.5]} 38... Rxd5
{[%clk 0:01:47.7]} 39. Rxh7 {[%clk 0:00:38.5]} 39... Rb2 {[%clk 0:01:45.6]} 40.
Kf2 {[%clk 0:00:38.2]} 40... Rxa2 {[%clk 0:01:45.4]} 41. Rg7 {[%clk 0:00:38.2]}
41... Rc2 {[%clk 0:01:39.4]} 42. Rxg6 {[%clk 0:00:37.5]} 42... Ke7 {[%clk
0:01:39.9]} 43. h4 {[%clk 0:00:37.5]} 43... Kf7 {[%clk 0:01:34.2]} 44. h5 {[%clk
0:00:37.9]} 44... e4 {[%clk 0:01:34.2]} 45. fxe4 {[%clk 0:00:36]} 45... fxe4
{[%clk 0:01:35.1]} 46. g4 {[%clk 0:00:36.3]} 46... Rc1 {[%clk 0:01:34.5]} 47.
Ke2 {[%clk 0:00:36.3]} 47... Rxd1 {[%clk 0:01:35.1]} 48. Kxd1 {[%clk 0:00:36.6]}
48... e3 {[%clk 0:01:35.8]} 0-1